fUST/lending_fUST_20250819
["ID","MTS","AMOUNT","RATE_DAILY","PERIOD"]
[380146034,1755574244630,-480.0,0.00019726,2]
[380146035,1755574244639,-480.0,0.00019726,2]
[380146036,1755574244648,-480.0,0.00019726,2]
[380146037,1755574244658,-480.0,0.00019726,2]
[380146039,1755574244668,-635.93,0.00019726,2]
[380146040,1755574244677,-990.28,0.00019726,2]
[380146041,1755574244686,-480.0,0.00019726,2]
[380146042,1755574244695,-480.0,0.00019726,2]
[380146043,1755574244705,-480.0,0.00019726,2]
[380146044,1755574244715,-480.0,0.00019726,2]
[380146045,1755574244726,-480.0,0.00019726,2]
[380146046,1755574244735,-480.0,0.00019726,2]
[380146047,1755574244746,-480.0,0.00019726,2]
[380146048,1755574244758,-480.0,0.00019726,2]
[380146049,1755574244768,-480.0,0.00019726,2]
[380146050,1755574244777,-480.0,0.00019726,2]
[380146051,1755574244788,-480.0,0.00019726,2]
[380146052,1755574244798,-480.0,0.00019726,2]
[380146053,1755574244807,-776.16,0.00019726,2]
[380146054,1755574244817,-480.0,0.00019726,2]
[380146055,1755574244826,-480.0,0.00019726,2]
[380146056,1755574244836,-480.0,0.00019726,2]
[380146057,1755574244846,-1262.97,0.00019726,2]
[380146058,1755574244856,-480.0,0.00019726,2]
[380146059,1755574244866,-480.0,0.00019726,2]
[380146060,1755574244875,-480.0,0.00019726,2]
[380146061,1755574244884,-825.48,0.00019726,2]
[380146062,1755574244894,-480.0,0.00019726,2]
[380146063,1755574244903,-668.48,0.00019726,2]
[380146064,1755574244913,-480.0,0.00019726,2]
[380146065,1755574244922,-480.0,0.00019726,2]
[380146066,1755574244932,-480.0,0.00019726,2]
[380146067,1755574244941,-480.0,0.00019726,2]
[380146068,1755574244950,-480.0,0.00019726,2]
[380146069,1755574244960,-480.0,0.00019726,2]
[380146070,1755574245051,-707.69,0.00019726,2]
[380146071,1755574245073,-480.0,0.00019726,2]
[380146072,1755574245083,-480.0,0.00019726,2]
[380146073,1755574245093,-480.0,0.00019726,2]
[380146074,1755574245103,-480.0,0.00019726,2]
[380146075,1755574245113,-480.0,0.00019726,2]
[380146076,1755574245124,-480.0,0.00019726,2]
[380146077,1755574245134,-480.0,0.00019726,2]
[380146078,1755574245143,-480.0,0.00019726,2]
[380146079,1755574245153,-480.0,0.00019726,2]
[380146080,1755574245163,-480.0,0.00019726,2]
[380146081,1755574245173,-1351.58,0.00019726,2]
[380146082,1755574245182,-480.0,0.00019726,2]
[380146083,1755574245191,-1613.78,0.00019726,2]
[380146084,1755574245201,-480.0,0.00019726,2]
[380146085,1755574245210,-442.57832562,0.00019726,2]
[380146086,1755574245220,-1136.84,0.00019726,2]
[380146087,1755574245229,-480.0,0.00019726,2]
[380146088,1755574245239,-1722.05,0.00019726,2]
[380146089,1755574245249,-780.11,0.00019726,2]
[380146090,1755574245258,-520.04,0.00019726,2]
[380146091,1755574245269,-628.99,0.00019726,2]
[380146092,1755574245278,-480.0,0.00019726,2]
[380146093,1755574245288,-705.42,0.00019726,2]
[380146094,1755574245297,-805.17,0.00019726,2]
[380146095,1755574245307,-1489.02,0.00019726,2]
[380146096,1755574245316,-480.0,0.00019726,2]
[380146097,1755574245326,-610.27,0.00019726,2]
[380146098,1755574245336,-480.0,0.00019726,2]
[380146099,1755574245345,-1222.13,0.00019726,2]
[380146100,1755574245355,-480.0,0.00019726,2]
[380146101,1755574245364,-483.86803976,0.00019726,2]
[380146102,1755574245373,-480.0,0.00019726,2]
[380146103,1755574245383,-1437.14,0.00019726,2]
[380146104,1755574245393,-2586.84,0.00019726,2]
[380146105,1755574245402,-722.14,0.00019726,2]
[380146106,1755574245412,-2015.33,0.00019726,2]
[380146107,1755574245421,-480.0,0.00019726,2]
[380146108,1755574245431,-480.0,0.00019726,2]
[380146109,1755574245440,-480.0,0.00019726,2]
[380146110,1755574245450,-480.0,0.00019726,2]
[380146111,1755574245459,-480.0,0.00019726,2]
[380146112,1755574245468,-800.42,0.00019726,2]
[380146113,1755574245478,-480.0,0.00019726,2]
[380146114,1755574245487,-480.0,0.00019726,2]
[380146115,1755574245496,-480.0,0.00019726,2]
[380146116,1755574245505,-484.39539793,0.00019726,2]
[380146117,1755574245514,-765.99,0.00019726,2]
[380146118,1755574245524,-480.0,0.00019726,2]
[380146119,1755574245533,-480.0,0.00019726,2]
[380146120,1755574245542,-1323.55,0.00019726,2]
[380146121,1755574245551,-488.88,0.00019726,2]
[380146122,1755574245561,-4536.92,0.00019726,2]
[380146123,1755574245570,-480.0,0.00019726,2]
[380146124,1755574245579,-480.0,0.00019726,2]
[380146125,1755574245588,-480.0,0.00019726,2]
[380146126,1755574245598,-620.84124652,0.00019726,2]
[380146127,1755574245607,-1571.27,0.00019726,2]
[380146128,1755574245616,-480.0,0.00019726,2]
[380146129,1755574245626,-579.30368795,0.00019726,2]
[380146130,1755574245636,-666.76,0.00019726,2]
[380146131,1755574245645,-504.69,0.00019726,2]
[380146132,1755574245654,-480.0,0.00019726,2]
[380146134,1755574245663,-441.6914417,0.00019726,2]
[380146136,1755574245673,-480.0,0.00019726,2]
[380146137,1755574245682,-480.0,0.00019726,2]
[380146138,1755574245692,-480.0,0.00019726,2]
[380146139,1755574245701,-736.48,0.00019726,2]
[380146140,1755574245711,-480.0,0.00019726,2]
[380146141,1755574245721,-480.0,0.00019726,2]
[380146142,1755574245730,-480.0,0.00019726,2]
[380146143,1755574245742,-480.0,0.00019726,2]
[380146144,1755574245752,-493.26935865,0.00019726,2]
[380146145,1755574245761,-480.0,0.00019726,2]
[380146146,1755574245770,-576.18,0.00019726,2]
[380146147,1755574245780,-488.84941899,0.00019726,2]
[380146148,1755574245789,-480.0,0.00019726,2]
[380146149,1755574245798,-480.0,0.00019726,2]
[380146150,1755574245807,-480.0,0.00019726,2]
[380146151,1755574245818,-220.46717816,0.00019726,2]
[380146152,1755574245827,-574.17,0.00019726,2]
[380146153,1755574245837,-480.0,0.00019726,2]
[380146154,1755574245846,-480.0,0.00019726,2]
[380146155,1755574245855,-538.69,0.00019726,2]
[380146156,1755574245864,-436.9989511,0.00019726,2]
[380146157,1755574245874,-549.22,0.00019726,2]
[380146158,1755574245884,-480.0,0.00019726,2]
[380146159,1755574245894,-468.51459334,0.00019726,2]
[380146160,1755574245903,-754.45,0.00019726,2]
[380146161,1755574245914,-480.0,0.00019726,2]
[380146162,1755574245923,-480.0,0.00019726,2]
[380146163,1755574245933,-480.0,0.00019726,2]
[380146164,1755574245943,-5394.02,0.00019726,2]
[380146165,1755574245952,-1725.58,0.00019726,2]
[380146166,1755574245962,-628.74,0.00019726,2]
[380146167,1755574245973,-211.80864667,0.00019726,2]
[380146168,1755574245983,-1253.58,0.00019726,2]
[380146169,1755574245992,-445.65206733,0.00019726,2]
[380146170,1755574246001,-480.0,0.00019726,2]
[380146171,1755574246011,-889.31,0.00019726,2]
[380146172,1755574246020,-468.4591498,0.00019726,2]
[380146173,1755574246029,-480.0,0.00019726,2]
[380146174,1755574246039,-3866.32,0.00019726,2]
[380146175,1755574246048,-480.0,0.00019726,2]
[380146176,1755574246058,-160.0,0.00019763,6]
[380146177,1755574246067,-310.326063,0.00019863,2]
[380146178,1755574246077,-596.51750721,0.000199,2]
[380146179,1755574246087,-649.11584513,0.000199,2]
[380146180,1755574246096,-160.0,0.00019979,7]
[380146181,1755574246105,-100000.0,0.0001999,2]
[380146182,1755574246114,-430.0,0.00019996,2]
[380146183,1755574246124,-158.2886022,0.00019999,2]
[380146184,1755574246134,-480.0,0.0002,2]
[380146185,1755574246144,-480.0,0.0002,2]
[380146186,1755574246154,-480.0,0.0002,2]
[380146187,1755574246163,-480.0,0.0002,2]
[380146188,1755574246173,-480.0,0.0002,2]
[380146189,1755574246182,-480.0,0.0002,2]
[380146190,1755574246191,-480.0,0.0002,2]
[380146191,1755574246200,-480.0,0.0002,2]
[380146192,1755574246210,-480.0,0.0002,2]
[380146193,1755574246219,-469.19614201,0.0002,2]
[380146194,1755574246230,-480.0,0.0002,2]
[380146195,1755574246240,-486.82875231,0.0002,2]
[380146196,1755574246249,-2426.49,0.0002,2]
[380146197,1755574246258,-152.57376085,0.0002,2]
[380146198,1755574246267,-480.0,0.0002,2]
[380146199,1755574246277,-480.0,0.0002,2]
[380146200,1755574246286,-573.68,0.0002,2]
[380146201,1755574246295,-480.0,0.0002,2]
[380146202,1755574246304,-480.0,0.0002,2]
[380146203,1755574246313,-1755.67,0.0002,2]
[380146204,1755574246323,-480.0,0.0002,2]
[380146205,1755574246332,-3156.46,0.0002,2]
[380146206,1755574246341,-480.0,0.0002,2]
[380146207,1755574246351,-480.0,0.0002,2]
[380146208,1755574246360,-480.0,0.0002,2]
[380146209,1755574246370,-480.0,0.0002,2]
[380146210,1755574246380,-480.0,0.0002,2]
[380146211,1755574246389,-602.65,0.0002,2]
[380146212,1755574246399,-480.0,0.0002,2]
[380146213,1755574246408,-480.0,0.0002,2]
[380146214,1755574246417,-480.0,0.0002,2]
[380146215,1755574246426,-480.0,0.0002,2]
[380146216,1755574246436,-635.93,0.0002,2]
[380146217,1755574246445,-990.28,0.0002,2]
[380146218,1755574246454,-480.0,0.0002,2]
[380146219,1755574246463,-480.0,0.0002,2]
[380146220,1755574246472,-480.0,0.0002,2]
[380146221,1755574246481,-480.0,0.0002,2]
[380146222,1755574246495,-480.0,0.0002,2]
[380146223,1755574246504,-480.0,0.0002,2]
[380146224,1755574246513,-480.0,0.0002,2]
[380146225,1755574246522,-776.16,0.0002,2]
[380146226,1755574246532,-480.0,0.0002,2]
[380146227,1755574246541,-480.0,0.0002,2]
[380146228,1755574246551,-480.0,0.0002,2]
[380146229,1755574246560,-1262.97,0.0002,2]
[380146230,1755574246570,-480.0,0.0002,2]
[380146231,1755574246579,-480.0,0.0002,2]
[380146232,1755574246589,-480.0,0.0002,2]
[380146233,1755574246599,-825.48,0.0002,2]
[380146234,1755574246608,-484.26863453,0.0002,2]
[380146235,1755574246618,-668.48,0.0002,2]
[380146236,1755574246627,-480.0,0.0002,2]
[380146237,1755574246636,-480.0,0.0002,2]
[380146238,1755574246645,-480.0,0.0002,2]
[380146239,1755574246655,-480.0,0.0002,2]
[380146240,1755574246665,-480.0,0.0002,2]
[380146241,1755574246674,-480.0,0.0002,2]
[380146242,1755574246683,-707.69,0.0002,2]
[380146243,1755574246692,-480.0,0.0002,2]
[380146244,1755574246702,-480.0,0.0002,2]
[380146245,1755574246711,-480.0,0.0002,2]
[380146246,1755574246722,-480.0,0.0002,2]
[380146247,1755574246731,-480.0,0.0002,2]
[380146248,1755574246740,-480.0,0.0002,2]
[380146249,1755574246753,-480.0,0.0002,2]
[380146250,1755574246763,-480.0,0.0002,2]
[380146251,1755574246772,-480.0,0.0002,2]
[380146252,1755574246781,-1351.58,0.0002,2]
[380146253,1755574246791,-480.0,0.0002,2]
[380146254,1755574246801,-1613.78,0.0002,2]
[380146255,1755574246810,-480.0,0.0002,2]
[380146256,1755574246819,-1136.84,0.0002,2]
[380146257,1755574246828,-480.0,0.0002,2]
[380146258,1755574246838,-1722.05,0.0002,2]
[380146259,1755574246847,-780.11,0.0002,2]
[380146260,1755574246856,-520.04,0.0002,2]
[380146261,1755574246866,-628.99,0.0002,2]
[380146262,1755574246875,-705.42,0.0002,2]
[380146263,1755574246885,-805.17,0.0002,2]
[380146264,1755574246894,-1489.02,0.0002,2]
[380146265,1755574246904,-480.0,0.0002,2]
[380146266,1755574246912,-610.27,0.0002,2]
[380146267,1755574246921,-480.0,0.0002,2]
[380146268,1755574246930,-1222.13,0.0002,2]
[380146269,1755574246940,-615.77223041,0.0002,2]
[380146270,1755574246950,-485.4907035,0.0002,2]
[380146272,1755574246960,-1437.14,0.0002,2]
[380146274,1755574246970,-2586.84,0.0002,2]
[380146276,1755574246980,-722.14,0.0002,2]
[380146277,1755574246989,-2015.33,0.0002,2]
[380146280,1755574246999,-480.0,0.0002,2]
[380146282,1755574247008,-480.0,0.0002,2]
[380146283,1755574247018,-480.0,0.0002,2]
[380146285,1755574247027,-480.0,0.0002,2]
[380146287,1755574247037,-800.42,0.0002,2]
[380146289,1755574247046,-480.0,0.0002,2]
[380146291,1755574247055,-480.0,0.0002,2]
[380146293,1755574247064,-480.0,0.0002,2]
[380146295,1755574247074,-765.99,0.0002,2]
[380146297,1755574247083,-480.0,0.0002,2]
[380146299,1755574247093,-236.19939911,0.0002,20]
[380146301,1755574247103,-4043.97727354,0.0002,2]
[380146303,1755574247112,-480.0,0.0002,2]
[380146305,1755574247121,-1323.55,0.0002,2]
[380146307,1755574247131,-488.88,0.0002,2]
[380146309,1755574247141,-4536.92,0.0002,2]
[380146311,1755574247150,-480.0,0.0002,2]
[380146313,1755574247160,-480.0,0.0002,2]
[380146315,1755574247169,-480.0,0.0002,2]
[380146317,1755574247179,-1571.27,0.0002,2]
[380146319,1755574247283,-170.45534424,0.0002,2]
[380146320,1755574247294,-666.76,0.0002,2]
[380146321,1755574247303,-504.69,0.0002,2]
[380146322,1755574247313,-480.0,0.0002,2]
[380146323,1755574247322,-480.0,0.0002,2]
[380146325,1755574247332,-468.43143579,0.0002,2]
[380146326,1755574247341,-736.48,0.0002,2]
[380146327,1755574247351,-425.08798622,0.0002,2]
[380146328,1755574247360,-480.0,0.0002,2]
[380146330,1755574247369,-480.0,0.0002,2]
[380146332,1755574247379,-243.22238701,0.0002,2]
[380146333,1755574247388,-480.0,0.0002,2]
[380146334,1755574247397,-576.18,0.0002,2]
[380146335,1755574247407,-282.23420419,0.0002,2]
[380146336,1755574247417,-480.0,0.0002,2]
[380146337,1755574247427,-497.02014658,0.0002,2]
[380146338,1755574247438,-574.17,0.0002,2]
[380146339,1755574247447,-307.12425117,0.0002,2]
[380146340,1755574247457,-480.0,0.0002,2]
[380146341,1755574247467,-538.69,0.0002,2]
[380146342,1755574247479,-549.22,0.0002,2]
[380146343,1755574247488,-480.0,0.0002,2]
[380146344,1755574247498,-754.45,0.0002,2]
[380146345,1755574247507,-480.0,0.0002,2]
[380146346,1755574247516,-480.0,0.0002,2]
[380146347,1755574247527,-480.0,0.0002,2]
[380146348,1755574247536,-1725.58,0.0002,2]
[380146349,1755574247546,-5394.02,0.0002,2]
[380146351,1755574247555,-628.74,0.0002,2]
[380146353,1755574247564,-1253.58,0.0002,2]
[380146355,1755574247573,-480.0,0.0002,2]
[380146357,1755574247583,-889.31,0.0002,2]
[380146359,1755574247592,-220.14091773,0.0002,2]
[380146363,1755574247619,-259.85908227,0.0002,2]
[380146365,1755574247628,-889.14091845,0.0002,2]
[380146366,1755574247639,-1639.79243058,0.0002,2]
[380146369,1755574247650,-561.90778376,0.0002,2]
[380146370,1755574247662,-775.47886721,0.0002,2]
[380146371,1755574247672,-480.0,0.0002,2]
[380146372,1755574247682,-428.99737058,0.00020001,2]
[380146373,1755574247692,-179.69451932,0.00020049,2]
[380146374,1755574247702,-151.0,0.000201,4]
[380146375,1755574247711,-349.0622135,0.00020167,2]
[380146376,1755574247725,-626.5757865,0.00020167,2]
[380146378,1755574247734,-637.0,0.00020167,2]
[380146380,1755574247746,-41.63546783,0.00020167,2]
[380146381,1755574247760,-809.7186708,0.00020167,2]
[380146382,1755574247771,-771.66239072,0.00020167,2]
[380146383,1755574248232,-480.0,0.00019178,2]
[380146384,1755574248244,-480.0,0.00019452,2]
[380146385,1755574248253,-588.96,0.00019452,2]
[380146386,1755574248263,-480.0,0.00019726,2]
[380146387,1755574248272,-523.46,0.00019726,2]
[380146388,1755574248282,-480.0,0.0002,2]
[380146389,1755574248292,-379.38,0.0002,2]
[380146390,1755574248307,-144.08,0.0002,2]
[380146391,1755574248317,-529.98347065,0.00020167,2]
[380146392,1755574248327,-402.61346212,0.00020167,2]
[380146393,1755574248420,-480.0,0.00019178,2]
[380146394,1755574248430,-5.38653788,0.00020167,2]
[380146395,1755574248440,-160.0,0.00020196,8]
[380146396,1755574248450,-161.21374197,0.00020196,5]
[380146397,1755574248459,-36.55693187,0.00020273,2]
[380146403,1755574582957,151.0,0.00028767,120]
[380146408,1755574899788,1950.60803608,0.00017,2]
[380146410,1755575090765,159.266538,0.00013699,2]
[380146414,1755575192303,-446.15369234,0.000188,2]
[380146419,1755575236123,-287.7592482,0.000188,2]
[380146421,1755575243081,-1796.41632927,0.000188,2]
[380146425,1755575347422,160.76883565,0.000186,2]
[380146439,1755575436226,-1083.45682516,0.000188,2]
[380146440,1755575436239,-1953.30475517,0.000188,2]
[380146441,1755575436249,-938.67197981,0.000189,2]
[380146443,1755575436259,-1200.0,0.00019077,2]
[380146445,1755575436270,-177.65399805,0.00019078,2]
[380146447,1755575436279,-3125.85763252,0.00019078,2]
[380146449,1755575436289,-1333.45273396,0.00019166,2]
[380146451,1755575436302,-422.34,0.00019166,2]
[380146455,1755575436333,-1102.48191786,0.00019166,2]
[380146483,1755575438365,-14984.24779618,0.00019166,2]
[380146484,1755575438375,-1057.0,0.00019166,2]
[380146485,1755575438385,-151.0,0.00019166,2]
[380146486,1755575438394,-1200.0,0.00019169,2]
[380146487,1755575438404,-300.0,0.0001917,2]
[380146488,1755575438414,-300.0,0.0001917,2]
[380146489,1755575438423,-300.0,0.0001917,2]
[380146490,1755575438433,-300.0,0.0001917,2]
[380146491,1755575438442,-2023.00364629,0.00019172,2]
[380146492,1755575438452,-500.32277153,0.00019173,2]
[380146493,1755575438463,-501.16893574,0.00019173,2]
[380146494,1755575438472,-500.0,0.00019177,2]
[380146495,1755575438482,-500.0,0.00019177,2]
[380146496,1755575438491,-500.0,0.00019177,2]
[380146497,1755575438502,-500.35503005,0.00019177,2]
[380146498,1755575438512,-500.0,0.00019177,2]
[380146499,1755575438521,-500.0,0.00019177,2]
[380146500,1755575438531,-500.0,0.00019177,2]
[380146501,1755575438540,-411.05217329,0.00019177,2]
[380146502,1755575438550,-500.0,0.00019177,2]
[380146503,1755575438560,-230.24927137,0.00019177,2]
[380146504,1755575438569,-500.0,0.00019177,2]
[380146505,1755575438579,-500.0,0.00019177,2]
[380146506,1755575438589,-480.0,0.00019178,2]
[380146507,1755575438599,-480.0,0.00019178,2]
[380146508,1755575438608,-480.0,0.00019178,2]
[380146509,1755575438618,-480.0,0.00019178,2]
[380146510,1755575438628,-480.0,0.00019178,2]
[380146511,1755575438637,-480.0,0.00019178,2]
[380146512,1755575438647,-480.0,0.00019178,2]
[380146513,1755575438656,-480.0,0.00019178,2]
[380146514,1755575438667,-5784.04,0.00019178,2]
[380146515,1755575438676,-480.0,0.00019178,2]
[380146516,1755575438686,-480.0,0.00019178,2]
[380146517,1755575438695,-485.48,0.00019178,2]
[380146518,1755575438705,-480.0,0.00019178,2]
[380146519,1755575438714,-521.51406855,0.00019178,2]
[380146520,1755575438724,-480.0,0.00019178,2]
[380146521,1755575438733,-480.0,0.00019178,2]
[380146522,1755575438743,-1361.6,0.00019178,2]
[380146523,1755575438754,-480.0,0.00019178,2]
[380146524,1755575438763,-480.5386447,0.00019178,2]
[380146525,1755575438772,-480.0,0.00019178,2]
[380146526,1755575438781,-318.84382508,0.00019178,2]
[380146527,1755575438791,-480.0,0.00019178,2]
[380146528,1755575438800,-480.0,0.00019178,2]
[380146529,1755575438810,-615.77223041,0.00019178,2]
[380146530,1755575438819,-664.72,0.00019178,2]
[380146531,1755575438828,-480.0,0.00019178,2]
[380146532,1755575438837,-480.0,0.00019178,2]
[380146533,1755575438847,-480.0,0.00019178,2]
[380146534,1755575438855,-480.0,0.00019178,2]
[380146535,1755575438865,-480.0,0.00019178,2]
[380146536,1755575438874,-613.49,0.00019178,2]
[380146537,1755575438883,-480.0,0.00019178,2]
[380146538,1755575438892,-480.0,0.00019178,2]
[380146539,1755575438902,-480.0,0.00019178,2]
[380146540,1755575438911,-480.0,0.00019178,2]
[380146541,1755575438921,-480.0,0.00019178,2]
[380146542,1755575438930,-484.19684791,0.00019178,2]
[380146543,1755575438939,-480.0,0.00019178,2]
[380146544,1755575438949,-480.0,0.00019178,2]
[380146545,1755575438960,-485.4907035,0.00019178,2]
[380146546,1755575438971,-480.0,0.00019178,2]
[380146547,1755575438980,-480.0,0.00019178,2]
[380146548,1755575438989,-480.0,0.00019178,2]
[380146549,1755575438999,-480.0,0.00019178,2]
[380146550,1755575439008,-480.0,0.00019178,2]
[380146551,1755575439017,-480.0,0.00019178,2]
[380146552,1755575439027,-3111.06,0.00019178,2]
[380146553,1755575439036,-484.26863453,0.00019178,2]
[380146554,1755575439045,-480.0,0.00019178,2]
[380146555,1755575439055,-411.79151095,0.00019178,2]
[380146556,1755575439063,-480.0,0.00019178,2]
[380146557,1755575439073,-480.0,0.00019178,2]
[380146558,1755575439082,-480.0,0.00019178,2]
[380146559,1755575439091,-480.0,0.00019178,2]
[380146560,1755575439100,-480.0,0.00019178,2]
[380146561,1755575439110,-480.0,0.00019178,2]
[380146562,1755575439120,-666.39,0.00019178,2]
[380146563,1755575439129,-442.25259576,0.00019178,2]
[380146564,1755575439139,-480.0,0.00019178,2]
[380146565,1755575439149,-1026.57,0.00019178,2]
[380146566,1755575439160,-480.0,0.00019178,2]
[380146567,1755575439169,-480.0,0.00019178,2]
[380146568,1755575439178,-480.0,0.00019178,2]
[380146569,1755575439188,-489.63,0.00019178,2]
[380146570,1755575439197,-480.0,0.00019178,2]
[380146571,1755575439207,-487.08217191,0.00019178,2]
[380146572,1755575439218,-620.84124652,0.00019178,2]
[380146573,1755575439231,-267.02972815,0.00019178,2]
[380146574,1755575439240,-480.0,0.00019178,2]
[380146575,1755575439249,-480.0,0.00019178,2]
[380146576,1755575439258,-480.0,0.00019178,2]
[380146577,1755575439270,-468.4591498,0.00019178,2]
[380146578,1755575439279,-775.37,0.00019178,2]
[380146579,1755575439290,-480.0,0.00019178,2]
[380146580,1755575439301,-480.0,0.00019178,2]
[380146581,1755575439311,-480.0,0.00019178,2]
[380146582,1755575439320,-480.0,0.00019178,2]
[380146583,1755575439330,-480.0,0.00019178,2]
[380146584,1755575439339,-488.84941899,0.00019178,2]
[380146585,1755575439449,-480.0,0.00019178,2]
[380146586,1755575439458,-480.0,0.00019178,2]
[380146587,1755575439468,-480.0,0.00019178,2]
[380146588,1755575439477,-220.46717816,0.00019178,2]
[380146589,1755575439487,-480.0,0.00019178,2]
[380146590,1755575439496,-400.0,0.00019178,2]
[380146591,1755575439506,-468.51459334,0.00019178,2]
[380146592,1755575439515,-480.0,0.00019178,2]
[380146593,1755575439524,-480.0,0.00019178,2]
[380146594,1755575439533,-480.0,0.00019178,2]
[380146595,1755575439543,-484.39539793,0.00019178,2]
[380146596,1755575439552,-480.0,0.00019178,2]
[380146597,1755575439562,-832.21,0.00019178,2]
[380146598,1755575439571,-480.0,0.00019178,2]
[380146599,1755575439580,-1361.96,0.00019178,2]
[380146600,1755575439589,-480.0,0.00019178,2]
[380146601,1755575439598,-482.27916544,0.00019178,2]
[380146602,1755575439608,-480.0,0.00019178,2]
[380146603,1755575439617,-480.0,0.00019178,2]
[380146604,1755575439626,-905.94,0.00019178,2]
[380146605,1755575439635,-480.0,0.00019178,2]
[380146606,1755575439645,-480.0,0.00019178,2]
[380146607,1755575439655,-1307.81,0.00019178,2]
[380146608,1755575439665,-480.0,0.00019178,2]
[380146609,1755575439674,-444.30524327,0.00019178,2]
[380146610,1755575439684,-480.0,0.00019178,2]
[380146611,1755575439695,-480.0,0.00019178,2]
[380146612,1755575439705,-480.0,0.00019178,2]
[380146613,1755575439715,-480.0,0.00019178,2]
[380146614,1755575439725,-480.0,0.00019178,2]
[380146615,1755575439736,-816.48,0.00019178,2]
[380146616,1755575439747,-480.0,0.00019178,2]
[380146617,1755575439757,-831.01,0.00019178,2]
[380146618,1755575439767,-1296.29,0.00019178,2]
[380146619,1755575439776,-480.0,0.00019178,2]
[380146620,1755575439785,-480.0,0.00019178,2]
[380146621,1755575439795,-1758.19,0.00019178,2]
[380146622,1755575439804,-535.46,0.00019178,2]
[380146623,1755575439813,-480.0,0.00019178,2]
[380146624,1755575439822,-480.0,0.00019178,2]
[380146625,1755575439831,-827.18,0.00019178,2]
[380146626,1755575439841,-1295.8,0.00019178,2]
[380146628,1755575439850,-551.02,0.00019178,2]
[380146630,1755575439860,-480.0,0.00019178,2]
[380146633,1755575439869,-668.42,0.00019178,2]
[380146635,1755575439885,-480.0,0.00019178,2]
[380146636,1755575439899,-491.14911974,0.00019178,2]
[380146637,1755575439909,-510.7,0.00019178,2]
[380146639,1755575439919,-480.0,0.00019178,2]
[380146640,1755575439929,-480.0,0.00019178,2]
[380146641,1755575439939,-480.0,0.00019178,2]
[380146642,1755575439949,-480.0,0.00019178,2]
[380146643,1755575439958,-480.0,0.00019178,2]
[380146644,1755575439969,-480.0,0.00019178,2]
[380146645,1755575439979,-480.0,0.00019178,2]
[380146646,1755575439988,-480.0,0.00019178,2]
[380146647,1755575439999,-480.0,0.00019178,2]
[380146648,1755575440009,-480.0,0.00019178,2]
[380146649,1755575440019,-480.0,0.00019178,2]
[380146650,1755575440029,-480.0,0.00019178,2]
[380146651,1755575440038,-1637.59,0.00019178,2]